[Event "Superbet Rapid Poland 2022"]
[Site "Warsaw"]
[Date "2022.05.21"]
[Round "8.5"]
[White "Aronian, Levon"]
[Black "Duda, Jan-Krzysztof"]
[Result "0-1"]
[ECO "C28"]
[WhiteElo "2765"]
[BlackElo "2750"]
[Annotator "TA"]
[PlyCount "166"]
[EventDate "2022.05.19"]
[EventType "tourn"]
[EventCountry "POL"]
[SourceTitle "playchess.com"]
[Source "ChessBase"]
[SourceQuality "1"]
[TimeControl "1500+10"]

{[%evp 10,166,0,0,7,6,4,8,13,1,17,-15,-9,-15,0,0,-8,0,21,11,42,0,0,0,0,0,0,0,4,0,54,0,0,0,21,20,14,0,26,11,11,11,11,10,10,-1,-1,-1,-1,-11,-4,-4,-1,-1,-1,-8,-4,-18,-8,-8,-4,-4,-4,-4,0,0,0,-34,-33,-36,-34,-31,-42,-39,-42,-48,-41,-68,-28,-169,-137,-354,-375,-377,-360,-399,-394,-385,-376,-363,-273,-243,-74,-74,-74,-74,-71,-71,-71,-75,-81,-112,-112,-112,-71,-71,-71,-71,-71,-71,-71,-71,-71,-71,-71,-112,-112,-435,-127,-127,-127,-127,-127,-127,-127,-127,-127,-127,-127,-270,-112,-112,0,-268,-253,-303,-295,-261,-245,-412,-376,-358,-355,-553,-458,-666,-570,-628,-484,-734,-672,-780,-658,-29977,-29978,-29978,-29979,-29975,-29967]} 1. e4 {[%emt 0:00:01]} e5 {[%emt 0:00:01]} 2. Bc4 {[%emt 0:00:04]} Nf6 {[%emt 0:00:04]} 3. d3 {[%emt 0:00:01]} Nc6 {[%emt 0:00:15]} 4. Nc3 {[%emt 0:00:08]} Bb4 {[%emt 0:01:13]} 5. Nf3 {[%emt 0:00:07]} d6 {[%emt 0:01:16]} 6. O-O {[%emt 0:00:07]} Na5 {[%emt 0:00:12] C28: Vienna Game: 2...Nf6 3 Bc4 Nc6.} 7. Bb3 {[%emt 0:00:22]} Nxb3 {[%emt 0:00:46]} 8. axb3 {[%emt 0:00:02]} O-O {[%emt 0:00:23][%cal Bh8f8,Bf8e8,Be8e4][%mdl 32] The position is equal.} 9. Bg5 {[%emt 0:00:29]} c6 {[%emt 0:00:08] [#] Inhibits Nd5.} 10. Kh1 $146 {[%emt 0:00:31]} ({Predecessor:} 10. d4 h6 11. Bh4 Re8 12. Ra4 a5 13. dxe5 dxe5 14. Qxd8 Rxd8 15. Nxe5 g5 16. Bg3 {½-½ (25) Tsukanov,I (2013)-Zolochevsky,V (2332) ICCF email 2016}) 10... Re8 {[%emt 0:00:22]} 11. h3 {[%emt 0:01:15]} b5 {[%emt 0:01:52]} 12. Ne2 {[%emt 0:02:12]} h6 {[%emt 0:02:41]} 13. Bh4 {[%emt 0:00:01]} d5 {[%emt 0:00:32]} 14. d4 {[%emt 0:00:01]} exd4 {[%emt 0:02:10]} (14... dxe4 {keeps more tension.} 15. Nxe5 Qc7 16. Nc3 Bxc3 17. bxc3 Nd7) 15. Nfxd4 {[%emt 0:03:02]} Rxe4 {[%emt 0:02:24]} 16. Nxc6 {[%emt 0:00:02] Pair of Knights!} Qd6 {[%emt 0:00:05]} 17. Bxf6 {[%emt 0:00:09]} Qxc6 {[%emt 0:00:02]} 18. Bd4 {[%emt 0:00:04]} a5 {[%emt 0:01:29]} 19. Qd3 {[%emt 0:03:59]} Bf8 {[%emt 0:01:56]} (19... Bd6 $11) 20. Ng3 {[%emt 0:02:18]} (20. Nc3 $14) 20... Re8 $11 {[%emt 0:00:31]} 21. Rfe1 {[%emt 0:00:25]} a4 {[%emt 0:01:22]} 22. Rxe8 {[%emt 0:00:33]} Qxe8 {[%emt 0:00:02]} 23. b4 {[%emt 0:00:04]} Ra6 {[%emt 0:02:00]} 24. c3 {[%emt 0:00:05]} Re6 {[%emt 0:00:24]} 25. Kg1 {[%emt 0:01:13]} Bd6 {[%emt 0:00:41]} 26. Kf1 {[%emt 0:00:24]} Bxg3 {[%emt 0:00:20]} (26... Rg6 {feels hotter.} 27. Re1 Re6 28. Ne2 Bb7) 27. fxg3 {[%emt 0:02:11]} Re4 {[%emt 0:00:33]} 28. Qf3 {[%emt 0:00:27]} f6 {[%emt 0:00:35]} 29. Rd1 {[%emt 0:00:42]} Be6 {[%emt 0:00:09]} 30. g4 {[%emt 0:01:43]} Bf7 {[%emt 0:00:08]} (30... Qc6 {is more complex.} 31. Rd2 Bf7 32. Qg3 Bg6) 31. Qf2 {[%emt 0:00:31]} Bg6 {[%emt 0:00:18]} 32. Rd2 {[%emt 0:00:17]} Re6 {[%emt 0:00:25]} 33. Qg3 {[%emt 0:00:15]} Kh7 {[%emt 0:00:08]} 34. Bf2 {[%emt 0:00:43]} Qc6 {[%emt 0:00:34]} 35. Kg1 {[%emt 0:00:29]} Qc4 {[%emt 0:00:06]} 36. Qf3 {[%emt 0:00:56] Against Re2} d4 {[%emt 0:00:40]} 37. Rxd4 {[%emt 0:01:08]} Qe2 {[%emt 0:00:11]} 38. Qd5 {[%emt 0:02:35]} (38. Rd7 $5 {[%cal Rf3b7]} Qxb2 39. Qb7 $11) 38... Re5 {[%emt 0:01:15][%cal Be6e5,Be5d5,Bd5d1,Bd1d2][%mdl 32]} 39. Rd2 {[%emt 0:00:04][%cal Bd4d2,Bd2e2,Be2e7][%mdl 32]} Rxd5 {[%emt 0:00:12]} 40. Rxe2 $15 {[%emt 0:00:00][%mdl 4096] Endgame KRB-KRB} Rd1+ {[%emt 0:00:05]} 41. Kh2 {[%emt 0:00:01]} Bd3 {[%emt 0:00:37][%mdl 1024] Black has compensation.} 42. Re7 {[%emt 0:00:06]} Bc4 $1 {[%emt 0:00:37]} 43. Bd4 {[%emt 0:01:02]} Kg8 $1 {[%emt 0:00:03]} 44. h4 {[%emt 0:00:19]} (44. Rd7 $11) 44... Rd2 $19 {[%emt 0:00:27]} 45. g5 $2 {[%emt 0:00:49]} (45. Kg3 $17) 45... hxg5 {[%emt 0:00:11]} ({Worse is} 45... Rxb2 46. g6 Re2 47. Ra7 $11) 46. hxg5 {[%emt 0:00:01]} fxg5 {[%emt 0:00:38]} 47. Rxg7+ {[%emt 0:00:01]} Kf8 {[%emt 0:00:02][%cal Od2d4]} 48. Ra7 {[%emt 0:00:02]} Rxb2 {[%emt 0:00:42]} 49. Kg3 {[%emt 0:00:03]} Ke8 {[%emt 0:00:29]} 50. Bf6 {[%emt 0:00:17]} Bd5 $2 {[%emt 0:00:55]} (50... Ra2 $1 $19 {Strongly threatening ...a3.} 51. Kg4 Rxg2+ 52. Kh5 g4 53. Re7+ Kf8) 51. Bxg5 $17 {[%emt 0:00:05]} Rxg2+ {[%emt 0:00:04]} 52. Kf4 {[%emt 0:00:02]} Re2 {[%emt 0:00:20]} 53. Bf6 {[%emt 0:00:04]} Bc4 {[%emt 0:00:07]} 54. Kf5 {[%emt 0:00:07]} Rf2+ {[%emt 0:00:08]} 55. Ke5 {[%emt 0:00:06]} Rf3 {[%emt 0:00:15]} 56. Bg5 {[%emt 0:00:43]} Rf1 {[%emt 0:00:07]} 57. Re7+ {[%emt 0:00:10]} Kf8 {[%emt 0:00:04]} 58. Ra7 {[%emt 0:00:03]} Ra1 {[%emt 0:00:10]} 59. Kf6 {[%emt 0:01:04][%cal Ra7a8]} Ke8 {[%emt 0:00:08]} 60. Re7+ {[%emt 0:00:07]} Kd8 {[%emt 0:00:05]} 61. Ke5 {[%emt 0:00:02]} Rd1 {[%emt 0:00:27]} 62. Ra7+ {[%emt 0:00:03]} Kc8 {[%emt 0:00:01] aiming for ...Kb8.} 63. Be7 $2 {[%emt 0:00:27][%mdl 8192]} (63. Be3 $17 {nothing else works.}) 63... Rd5+ $2 {[%emt 0:00:11]} (63... Re1+ $19 64. Kd6 Kb8) 64. Ke4 {[%emt 0:00:03]} Kb8 $1 {[%emt 0:00:07]} 65. Ra5 {[%emt 0:00:01]} Rd3 {[%emt 0:00:20]} 66. Bc5 {[%emt 0:00:18]} Rxc3 {[%emt 0:00:13]} 67. Ba7+ {[%emt 0:00:18]} Kb7 {[%emt 0:00:07] White must now prevent ...a3. Black is more active.} 68. Bd4 {[%emt 0:00:01]} Rh3 {[%emt 0:00:08] And now ...a3 would win.} 69. Ra7+ {[%emt 0:00:05] [#]} (69. Be3 $17 {is the only way for White.}) 69... Kc6 {[%emt 0:00:08]} (69... Kb8 $1 $19 {is more deadly. Threatens to win with ...Rh4+.} 70. Rd7 Kc8) 70. Ra6+ {[%emt 0:00:03]} Kb7 $2 {[%emt 0:00:02]} (70... Kc7 $17 71. Be3 Rh8 72. Ra7+ Kc6 73. Ra6+ Kb7 74. Rb6+ Kc8) 71. Ra7+ $19 {[%emt 0:00:02] [#]} Kb8 $1 {[%emt 0:00:02]} 72. Rg7 {[%emt 0:00:09]} a3 {[%emt 0:00:08][%cal Ba4a3,Ba3a2][%mdl 32]} 73. Be5+ {[%emt 0:00:06]} Ka8 {[%emt 0:00:08] ...a2 is the strong threat.} 74. Rg3 $2 {[%emt 0:00:06]} (74. Rd7) 74... Rh4+ {[%emt 0:00:07]} 75. Kf5 {[%emt 0:00:26]} a2 {[%emt 0:00:02]} 76. Kf6 {[%emt 0:00:09]} (76. Bc3 {keeps fighting.}) 76... Rh6+ {[%emt 0:00:11]} 77. Kg5 {[%emt 0:00:06]} (77. Kf5 $142 Ra6 78. Ba1) 77... Rh1 {[%emt 0:00:12]} 78. Ra3+ {[%emt 0:00:02]} Kb7 {[%emt 0:00:00]} 79. Kf6 {[%emt 0:00:03]} (79. Kf5 $142 Rh5+ 80. Kf4) 79... Kc6 {[%emt 0:00:09]} 80. Kf5 {[%emt 0:00:41]} Kd5 {[%emt 0:00:10] ( -> ...Rh5+)} 81. Bf6 {[%emt 0:00:07]} Rf1+ {[%emt 0:00:08] Black mates.} 82. Kg5 {[%emt 0:00:00] [#]} Rxf6 $1 {[%emt 0:00:15][%mdl 512]} 83. Kxf6 {[%emt 0:00:03] [#]} Bb3 $1 {[%emt 0:00:01][%mdl 576] Promotion.  Weighted Error Value: White=0.14 (very precise) /Black=0.11 (very precise)} 0-1

[Event "Superbet Rapid Poland 2022"]
[Site "Warsaw"]
[Date "2022.05.21"]
[Round "9.1"]
[White "Duda, Jan-Krzysztof"]
[Black "Korobov, Anton"]
[Result "1-0"]
[ECO "E92"]
[WhiteElo "2750"]
[BlackElo "2671"]
[Annotator "TA"]
[PlyCount "51"]
[EventDate "2022.05.19"]
[EventType "tourn"]
[EventCountry "POL"]
[SourceTitle "playchess.com"]
[Source "ChessBase"]
[SourceQuality "1"]
[TimeControl "1500+10"]

{[%evp 20,51,35,35,50,16,50,37,60,59,91,70,44,7,187,189,274,127,398,387,404,394,405,388,598,562,744,660,905,891,1021,994,938,912]} 1. d4 {[%emt 0:00:02]} Nf6 {[%emt 0:00:03]} 2. c4 {[%emt 0:00:02]} g6 {[%emt 0:00:02]} 3. Nc3 {[%emt 0:00:03]} Bg7 {[%emt 0:00:01]} 4. e4 {[%emt 0:00:02]} d6 {[%emt 0:00:01]} 5. h3 {[%emt 0:00:04]} O-O {[%emt 0:00:06]} 6. Be3 {[%emt 0:00:01]} e5 {[%emt 0:00:17]} 7. d5 {[%emt 0:00:09]} a5 {[%emt 0:00:32]} 8. g4 {[%emt 0:00:15]} Na6 {[%emt 0:00:08]} 9. Nf3 {[%emt 0:00:04]} Nc5 {[%emt 0:00:11]} 10. Nd2 {[%emt 0:00:05]} c6 {[%emt 0:00:04]} 11. Be2 {[%emt 0:00:19]} a4 {[%emt 0:00:27] E92: King's Indian: Classical: 6 Be2 e5: 7 dxe5, 7 Be3 and Petrosian System without 7...Nbd7.} 12. g5 {[%emt 0:00:12]} Ne8 {[%emt 0:02:08] outshines the older 12...Nfd7.} 13. h4 {[%emt 0:00:11][%cal Bh3h4,Bh4h5,Bh5h6][%mdl 32]} f5 {[%emt 0:00:02] White is slightly better.} 14. h5 {[%emt 0:01:56] [#]} a3 $146 {[%emt 0:01:34]} ({Predecessor:} 14... Rf7 15. hxg6 hxg6 16. f3 Bd7 17. b4 axb3 18. axb3 Rxa1 19. Qxa1 Na6 20. Kd1 Nb4 {0-1 (52) Wang,J (2317)-Neef,M (2509) Charlotte 2021}) 15. h6 {[%emt 0:01:48]} Bh8 {[%emt 0:00:03]} 16. Rb1 {[%emt 0:04:40]} Nxe4 $2 {[%emt 0:00:53]} (16... axb2 $1 $11 17. Rxb2 Rf7) 17. Ndxe4 $18 {[%emt 0:00:12][%cal Oc4c5] aiming for c5!} (17. Ncxe4 $6 cxd5 18. cxd5 axb2 $14) 17... fxe4 {[%emt 0:00:02] [#]} (17... c5 {was worth a try.} 18. Nf6+ Nxf6) 18. b4 {[%emt 0:00:30]} (18. c5 $1 $18) 18... Rf4 $2 {[%emt 0:01:01][%mdl 8192]} 19. c5 {[%emt 0:01:13][%cal Bc4c5,Bc5d6][%mdl 32]} (19. Bxf4 exf4 20. Nxe4 Qe7 $16) 19... Qxg5 {[%emt 0:01:08]} 20. dxc6 {[%emt 0:00:23]} bxc6 {[%emt 0:00:16]} (20... Qg2 $2 21. Qd5+ Rf7 {[#]} 22. Bc4 $1 Qxh1+ 23. Kd2 $18) 21. cxd6 {[%emt 0:00:55]} (21. Bxf4 exf4 22. Nxe4 Qe7 23. Nxd6 f3 24. Nxc8 (24. Qb3+ $2 Be6 $19) 24... Bc3+ 25. Kf1 fxe2+ 26. Qxe2 Qxe2+ 27. Kxe2 Rxc8 $15) 21... Bd7 {[%emt 0:07:00]} (21... Qg2 $2 22. Qb3+ Rf7 23. Kd2 Nxd6 24. Rbg1 $18) (21... Be6 {might work better.} 22. d7 (22. Bxf4 exf4 23. Nxe4 Qe5 $17) 22... Nc7) 22. b5 {[%emt 0:00:55] White is clearly winning.} Qg2 {[%emt 0:05:23]} 23. Qb3+ {[%emt 0:04:49]} Rf7 {[%emt 0:00:24]} 24. Kd2 {[%emt 0:00:02]} Nxd6 {[%emt 0:00:24]} 25. Rbg1 {[%emt 0:00:11]} Qxh1 {[%emt 0:00:42]} 26. Rxh1 {[%emt 0:00:02] Weighted Error Value: White=0.16 (very precise) /Black=0.90} 1-0

[Event "Superbet Rapid Poland 2022"]
[Site "Warsaw"]
[Date "2022.05.21"]
[Round "9.2"]
[White "Gavrilescu, David"]
[Black "Aronian, Levon"]
[Result "0-1"]
[ECO "C45"]
[WhiteElo "2518"]
[BlackElo "2765"]
[Annotator "TA"]
[PlyCount "100"]
[EventDate "2022.05.19"]
[EventType "tourn"]
[EventCountry "POL"]
[SourceTitle "playchess.com"]
[Source "ChessBase"]
[SourceQuality "1"]
[TimeControl "1500+10"]

{[%evp 16,100,36,33,29,-6,13,7,22,21,32,45,36,37,38,42,58,47,75,71,62,0,0,0,0,0,0,-3,0,-73,-73,-70,-76,-80,-100,-98,-77,-83,-64,-129,-106,-104,-100,-111,-51,-131,-68,-251,-229,-244,-243,-238,-238,-260,-234,-225,-222,-303,-252,-298,-306,-332,-347,-353,-347,-392,-384,-402,-402,-401,-395,-384,-381,-383,-374,-426,-426,-411,-411,-564,-557,-605,-572,-626,-626,-635,-618]} 1. e4 {[%emt 0:00:03]} e5 {[%emt 0:00:01]} 2. Nf3 {[%emt 0:00:02]} Nc6 {[%emt 0:00:01]} 3. d4 {[%emt 0:00:02]} exd4 {[%emt 0:00:02]} 4. Nxd4 {[%emt 0:00:02]} Nf6 {[%emt 0:00:02]} 5. Nxc6 {[%emt 0:00:02]} bxc6 {[%emt 0:00:01]} 6. Bd3 {[%emt 0:00:03]} d6 {[%emt 0:00:03]} 7. Nc3 {[%emt 0:00:29]} Be7 {[%emt 0:00:03]} 8. O-O {[%emt 0:01:30]} O-O {[%emt 0:00:02]} 9. f4 {[%emt 0:02:05]} a5 {[%emt 0:00:01] C45: Scotch Game.} 10. a4 {[%emt 0:02:16] [#]} Re8 $146 {[%emt 0:01:08]} (10... d5 {is interesting.} 11. e5 Ng4 12. Kh1 Bb4) ({Predecessor:} 10... Ba6 11. Bxa6 Rxa6 12. Qd3 Ra8 13. Bd2 Nd7 14. b3 Bf6 15. Rad1 Re8 16. Qc4 c5 17. Ne2 {0-1 (38) Hansen,O-Selfors,W Tromsoe 1999}) 11. Kh1 {[%emt 0:02:21]} Bf8 {[%emt 0:00:03] The position is equal.} 12. Be3 {[%emt 0:00:21][%cal Bc1e3,Be3f2,Bf2h4][%mdl 32]} (12. e5 {with more complications.} Bg4 13. Qe1 Qd7 14. Bd2) 12... Ba6 {[%emt 0:01:25]} (12... Ng4 {looks sharper.} 13. Bd4 Rb8 14. b3 d5) 13. Bxa6 {[%emt 0:01:58]} Rxa6 {[%emt 0:00:01]} 14. Qd3 {[%emt 0:00:02]} Ra8 {[%emt 0:00:01]} 15. Rae1 {[%emt 0:00:05]} c5 {[%emt 0:00:55]} 16. Bf2 {[%emt 0:01:07]} c6 {[%emt 0:00:03]} 17. Bh4 {[%emt 0:00:55]} Be7 {[%emt 0:00:01]} 18. e5 {[%emt 0:02:06]} (18. b3 $1 $14) 18... dxe5 $11 {[%emt 0:00:05]} 19. Qxd8 {[%emt 0:00:07]} Bxd8 {[%emt 0:00:39]} 20. Rxe5 {[%emt 0:02:36]} Rxe5 {[%emt 0:00:01]} 21. fxe5 {[%emt 0:00:02]} Ng4 {[%emt 0:00:01][%csl LRe5,LRh4]} 22. Bf2 {[%emt 0:02:24]} (22. Bg3 $11 {keeps the balance.}) 22... Nxf2+ $17 {[%emt 0:00:56]} 23. Rxf2 {[%emt 0:00:02][%mdl 4096] Endgame KRB-KRN} Rb8 {[%emt 0:00:03]} 24. b3 {[%emt 0:00:42]} c4 {[%emt 0:00:00]} 25. bxc4 {[%emt 0:00:02]} Bc7 {[%emt 0:00:02]} 26. Re2 {[%emt 0:00:30]} Kf8 {[%emt 0:00:46][%mdl 1024] Black has strong compensation.} 27. e6 {[%emt 0:02:04]} ({White should play} 27. g4 $15) 27... f6 {[%emt 0:00:06] Threatens to win with ...Be5.} 28. g3 {[%emt 0:00:12]} Ke7 {[%emt 0:00:06]} 29. Rd2 {[%emt 0:00:08] [#] Rd7+ is the strong threat.} Rd8 {[%emt 0:01:14] Inhibits Rd7+.} (29... Kxe6 $17 {aiming for ...Rb4.} 30. Ne4 Rb4 31. Nc5+ Kf5) 30. Re2 {[%emt 0:03:03]} (30. Rd3 $15) 30... f5 {[%emt 0:00:21]} (30... Rd4 $17 31. Re4 Rd8) 31. Kg2 $2 {[%emt 0:01:13] Loses the game.} (31. Re3 $1 $15) 31... Rd4 $19 {[%emt 0:00:02]} 32. c5 {[%emt 0:00:06]} Rc4 {[%emt 0:00:01][%csl LRc3,LRc5]} 33. Re3 {[%emt 0:00:24]} Rxc5 {[%emt 0:00:02]} 34. Kf3 {[%emt 0:00:16]} Rc4 {[%emt 0:00:01]} 35. Ne2 {[%emt 0:00:28]} g6 {[%emt 0:00:55]} (35... Rxc2 36. Nd4 Rc5 37. Rb3 $17) ({Worse is} 35... Rxa4 36. Rc3) 36. c3 {[%emt 0:00:50]} Bb6 {[%emt 0:00:03]} ({Weaker is} 36... Rxa4 37. Nd4 $19) 37. Rd3 {[%emt 0:00:04]} Kxe6 {[%emt 0:00:02]} ({Don't go for} 37... Rxa4 $2 38. Nf4 $19) 38. Rd1 {[%emt 0:00:26]} Rxa4 {[%emt 0:00:22]} 39. Nf4+ {[%emt 0:00:02]} Ke7 {[%emt 0:00:07]} 40. Re1+ {[%emt 0:00:08]} Kd7 {[%emt 0:00:18]} 41. Rd1+ {[%emt 0:00:03]} Kc8 {[%emt 0:00:08]} 42. Rb1 {[%emt 0:00:30]} Bc7 {[%emt 0:00:08]} 43. Ne2 {[%emt 0:00:06]} Be5 {[%emt 0:00:13]} 44. Ke3 {[%emt 0:00:03]} h5 {[%emt 0:00:52]} 45. Rb6 {[%emt 0:00:10]} Kc7 {[%emt 0:00:06]} 46. Rb1 {[%emt 0:00:19]} h4 {[%emt 0:00:11]} 47. gxh4 {[%emt 0:00:10]} Rxh4 {[%emt 0:00:08] Black is clearly winning.} 48. Rg1 {[%emt 0:00:02]} Rh3+ {[%emt 0:01:05]} 49. Kd2 {[%emt 0:00:03]} f4 {[%emt 0:00:09]} 50. Rxg6 {[%emt 0:00:22]} Rxh2 {[%emt 0:00:03] Weighted Error Value: White=0.28 (precise) /Black=0.09 (flawless)} 0-1

[Event "Superbet Rapid Poland 2022"]
[Site "Warsaw"]
[Date "2022.05.21"]
[Round "9.3"]
[White "Caruana, Fabiano"]
[Black "Shevchenko, Kirill"]
[Result "1/2-1/2"]
[ECO "D11"]
[WhiteElo "2786"]
[BlackElo "2644"]
[Annotator "TA"]
[PlyCount "106"]
[EventDate "2022.05.19"]
[EventType "tourn"]
[EventCountry "POL"]
[SourceTitle "playchess.com"]
[Source "ChessBase"]
[SourceQuality "1"]
[TimeControl "1500+10"]

{[%evp 10,106,33,18,24,7,0,0,4,-25,-17,-19,-29,-20,-12,-35,-12,-44,-39,-48,-45,-61,-18,-11,-18,-11,-12,-14,-14,-35,-34,-37,-27,-58,-60,-75,-74,-110,-100,-122,-87,-126,0,0,0,0,0,0,41,-35,-32,-33,-36,-34,-44,-60,-60,-56,-16,-70,-19,-86,-70,-77,-72,-131,-110,-123,-79,-125,-107,-131,-53,-53,-41,-67,-67,-60,0,-24,0,-60,-60,-131,-22,-22,-22,-70,-69,-70,0,0,-3,-3,0,-4,0,-8,0]} 1. d4 {[%emt 0:00:03]} Nf6 {[%emt 0:00:04]} 2. c4 {[%emt 0:00:01]} c6 {[%emt 0:00:03]} 3. Nf3 {[%emt 0:00:05]} d5 {[%emt 0:00:02]} 4. e3 {[%emt 0:00:04]} Bf5 {[%emt 0:00:04]} 5. Nc3 {[%emt 0:00:02]} a6 {[%emt 0:00:01]} 6. a4 {[%emt 0:00:39]} e6 {[%emt 0:01:52] D11: Slav Defence: 3 Nf3 sidelines and 3...Nf6 4 e3 Bg4.} 7. a5 {[%emt 0:00:53] [#]} c5 $146 {[%emt 0:02:12]} ({Predecessor:} 7... Nbd7 8. c5 Qc7 9. Nh4 Be7 10. Qf3 Bg4 11. Qg3 Qxg3 12. hxg3 e5 13. Be2 Be6 14. Nf3 Ne4 15. Nxe4 dxe4 16. Nd2 Bd5 17. Nc4 Bxc4 {½-½ (17) Miladinovic,I (2563)-Stefanova,A (2514) Salou 2000}) 8. cxd5 {[%emt 0:01:30]} exd5 {[%emt 0:02:20]} 9. Ne5 {[%emt 0:05:36]} Nc6 {[%emt 0:01:34]} 10. Be2 {[%emt 0:02:58]} Qc7 {[%emt 0:03:52]} 11. Nxc6 {[%emt 0:01:30]} bxc6 {[%emt 0:01:36]} 12. O-O {[%emt 0:00:03]} Bd6 {[%emt 0:00:37]} 13. h3 {[%emt 0:00:02]} O-O {[%emt 0:00:34]} 14. dxc5 {[%emt 0:00:49]} Bxc5 {[%emt 0:00:05]} 15. Bd2 {[%emt 0:00:52]} Qe5 {[%emt 0:03:08]} 16. Na4 {[%emt 0:01:27]} Bd6 {[%emt 0:00:05][%csl Gd6][%cal Re5h2]} 17. f4 {[%emt 0:00:01]} Qe7 {[%emt 0:00:26]} 18. Rf3 {[%emt 0:00:17]} Be4 {[%emt 0:02:02]} 19. Rg3 {[%emt 0:00:22]} c5 $36 {[%emt 0:00:12][%mdl 2048] Black has some pressure.} 20. Nb6 {[%emt 0:00:49]} Ra7 {[%emt 0:00:16]} 21. Bf3 {[%emt 0:01:11]} Rd8 {[%emt 0:00:41]} 22. Qe2 {[%emt 0:00:45]} Bc7 {[%emt 0:02:04]} 23. Re1 {[%emt 0:00:57]} Bxf3 {[%emt 0:00:54]} 24. gxf3 {[%emt 0:00:02]} Qe6 {[%emt 0:01:04]} 25. e4 {[%emt 0:02:11]} Nh5 {[%emt 0:01:41]} (25... Bxb6 $17 26. Qg2 g6 $1) 26. Rg4 $11 {[%emt 0:00:05]} f5 {[%emt 0:00:51]} 27. exf5 {[%emt 0:02:21]} Qxf5 {[%emt 0:00:37][%cal Rc7f4]} 28. Rg5 {[%emt 0:01:31]} Qf7 {[%emt 0:00:05] [#]} (28... Qxh3 $5 {[%cal Rc7f4]} 29. Nxd5 Bd6 $11) 29. Qe6 {[%emt 0:02:09]} (29. Rxd5 $1 $14 Rxd5 (29... Rf8 30. Qe6) 30. Nxd5 Qg6+ 31. Qg2 Qxg2+ 32. Kxg2) 29... Qxe6 $1 $15 {[%emt 0:00:31]} (29... Nxf4 $2 30. Qxf7+ Kxf7 31. Bxf4 $18) 30. Rxe6 {[%emt 0:00:02]} Bxf4 {[%emt 0:00:12]} 31. Rxh5 {[%emt 0:00:20]} Bxd2 {[%emt 0:00:01]} 32. Nxd5 {[%emt 0:00:22]} Bxa5 {[%emt 0:00:09]} 33. Rf5 {[%emt 0:00:21]} Rf8 {[%emt 0:00:32]} 34. Rxf8+ {[%emt 0:00:12]} Kxf8 $11 {[%emt 0:00:01][%mdl 4096] Endgame KRB-KRN} 35. Kg2 {[%emt 0:00:12]} (35. Rc6 $11 {remains equal.}) 35... c4 {[%emt 0:00:20]} 36. Kg3 {[%emt 0:00:11]} Rd7 {[%emt 0:00:02]} 37. Re5 {[%emt 0:00:11]} (37. Nb6 $142 Kf7 38. Rc6 Bxb6 39. Rxb6) 37... Kf7 {[%emt 0:00:15]} 38. f4 {[%emt 0:00:02]} Bd8 {[%emt 0:00:03]} 39. Kf3 {[%emt 0:00:08]} (39. Kg4 $142) 39... Rb7 $17 {[%emt 0:00:01]} 40. Ne3 {[%emt 0:00:11]} Bf6 {[%emt 0:00:16]} (40... Rb3 $17 41. Ke4 Rb4) 41. Ra5 $15 {[%emt 0:00:10]} Rb3 {[%emt 0:00:12]} ({Much worse is} 41... Bxb2 42. Nxc4 Rb3+ 43. Kg4 $11) 42. Ke4 {[%emt 0:00:03] Prevents Bd4.} Rb4 {[%emt 0:00:04]} 43. Kf3 $1 {[%emt 0:00:12]} Rb3 {[%emt 0:00:01]} 44. Ke4 {[%emt 0:00:01] Against Bd4} Rb4 {[%emt 0:00:01] ( -> ...c3+)} ({Don't play} 44... Rxb2 $6 45. Nxc4 Rb4 46. Kd3 $15) 45. Kf3 $1 {[%emt 0:00:02]} Bd4 {[%emt 0:00:24] ...Rb3 is the strong threat.} 46. Nf5 {[%emt 0:00:01]} (46. Rxa6 $15 Bxe3 47. Kxe3) 46... Rb3+ {[%emt 0:00:21]} (46... Bxb2 $17 {Threatens to win with ...c3.} 47. Rxa6 Bf6 48. Ra7+ Kg6) 47. Ke4 $11 {[%emt 0:00:44]} Bxb2 {[%emt 0:00:04] Strongly threatening ...c3.} 48. Nd6+ {[%emt 0:00:05]} (48. Rxa6 $11 Bf6 49. Nd6+ Kg6 50. Nxc4) 48... Ke7 $15 {[%emt 0:00:23]} 49. Nxc4 {[%emt 0:00:05]} Bf6 {[%emt 0:00:06]} ({Black should play} 49... Rb4 $15 50. Kd3 Bc1) 50. Ne3 $11 {[%emt 0:00:13] The position is equal.} Rb4+ {[%emt 0:00:10]} 51. Kf3 {[%emt 0:00:01]} Rb3 {[%emt 0:00:01] White must now prevent ...Bd4.} 52. Ke4 {[%emt 0:00:02] Inhibits Bd4.} Rb4+ {[%emt 0:00:20]} 53. Kf3 {[%emt 0:00:01] Hoping for Nd5+.} Rb3 {[%emt 0:00:07] Weighted Error Value: White=0.16 (very precise) /Black=0.20 (precise)} 1/2-1/2